[Event "1st Sivas Buruciye Open 2019"]
[Site "Sivas"]
[Date "2019.08.20"]
[Round "3"]
[White "Arman, Deniz"]
[Black "Annaberdiev, Meilis"]
[Result "1/2-1/2"]
[ECO "B22"]
[WhiteElo "2347"]
[BlackElo "2518"]
[Annotator "ChessBase"]
[PlyCount "200"]
[EventDate "2019.08.19"]
[EventType "swiss"]
[EventCountry "TUR"]
[SourceTitle "playchess.com"]
[Source "ChessBase"]
[SourceQuality "1"]
[TimeControl "5400+30"]

1. e4 {[%emt 0:00:30]} c5 {[%emt 0:02:30]} 2. Nf3 {[%emt 0:00:30]} e6 {[%emt 0:00:30]} 3. c3 {[%emt 0:00:30]} Nf6 {[%emt 0:00:30]} 4. e5 {[%emt 0:05:30]} Nd5 {[%emt 0:00:30]} 5. d4 {[%emt 0:00:30]} cxd4 {[%emt 0:00:30]} 6. cxd4 {[%emt 0:00:30]} d6 {[%emt 0:00:00]} 7. Bc4 {[%emt 0:00:00]} Be7 {[%emt 0:00:00]} 8. Bxd5 {[%emt 0:02:00]} exd5 {[%emt 0:00:00]} 9. Nc3 {[%emt 0:00:30]} Be6 {[%emt 0:02:00]} 10. Bf4 {[%emt 0:03:30]} Nc6 {[%emt 0:00:30]} 11. O-O {[%emt 0:03:30]} O-O {[%emt 0:11:30]} 12. h3 {[%emt 0:03:30]} dxe5 {[%emt 0:01:30]} 13. Nxe5 {[%emt 0:00:30]} Nxe5 {[%emt 0:00:30]} 14. Bxe5 {[%emt 0:00:30]} Qd7 {[%emt 0:02:30]} 15. Qa4 {[%emt 0:09:30]} Qxa4 {[%emt 0:04:30]} 16. Nxa4 {[%emt 0:00:30]} Rfc8 {[%emt 0:00:30]} 17. Rac1 {[%emt 0:01:30]} b6 {[%emt 0:28:30]} 18. Bf4 {[%emt 0:01:30]} Rc4 {[%emt 0:05:30]} 19. Rxc4 {[%emt 0:01:30]} dxc4 {[%emt 0:01:30]} 20. Nc3 {[%emt 0:02:30]} Rd8 {[%emt 0:00:30]} 21. Rd1 {[%emt 0:00:30]} Bf5 {[%emt 0:03:30]} 22. Nb5 {[%emt 0:05:30]} a6 {[%emt 0:02:30]} 23. Nc7 {[%emt 0:00:30]} Bf6 {[%emt 0:01:30]} 24. Nxa6 {[%emt 0:02:30]} Rxd4 {[%emt 0:00:00]} 25. Rxd4 {[%emt 0:00:30]} Bxd4 {[%emt 0:00:00]} 26. Bc1 {[%emt 0:00:00]} Be4 {[%emt 0:04:30]} 27. Nb4 {[%emt 0:02:00]} b5 {[%emt 0:01:30]} 28. Kf1 {[%emt 0:00:30]} f5 {[%emt 0:01:30]} 29. f3 {[%emt 0:00:30]} Bb7 {[%emt 0:00:30]} 30. a3 {[%emt 0:01:30]} Kf7 {[%emt 0:00:30]} 31. Na2 {[%emt 0:00:30]} Ke6 {[%emt 0:00:30]} 32. Nc3 {[%emt 0:00:30]} Bc6 {[%emt 0:00:30]} 33. Ke2 {[%emt 0:00:30]} Bf6 {[%emt 0:00:30]} 34. Be3 {[%emt 0:00:00]} h5 {[%emt 0:00:30]} 35. Kf2 {[%emt 0:06:00]} h4 {[%emt 0:02:30]} 36. f4 {[%emt 0:10:30]} Be7 {[%emt 0:00:30]} 37. g3 {[%emt 0:01:30]} hxg3+ {[%emt 0:00:30]} 38. Kxg3 {[%emt 0:00:30]} b4 {[%emt 0:00:30]} 39. axb4 {[%emt 0:00:30]} Bxb4 {[%emt 0:00:00]} 40. Bd4 {[%emt 0:00:00]} g6 {[%emt 0:00:00]} 41. Bb6 {[%emt 0:06:00]} Bd6 {[%emt 0:00:30]} 42. Bd8 {[%emt 0:00:30]} Bc5 {[%emt 0:01:30]} 43. Ba5 {[%emt 0:01:30]} Be7 {[%emt 0:03:30]} 44. Bb6 {[%emt 0:00:30]} Bf6 {[%emt 0:01:29]} 45. Be3 {[%emt 0:00:30]} Be4 {[%emt 0:00:03]} 46. Bc5 {[%emt 0:00:30]} Bc2 {[%emt 0:00:56]} 47. Be3 {[%emt 0:00:30]} Kd6 {[%emt 0:00:09]} 48. Bb6 {[%emt 0:01:30]} Be4 {[%emt 0:00:21]} 49. Be3 {[%emt 0:00:30]} Bc6 {[%emt 0:00:08]} 50. Bb6 {[%emt 0:00:30]} Be8 {[%emt 0:00:24]} 51. Be3 {[%emt 0:00:30]} Kc6 {[%emt 0:00:30]} 52. Kf3 {[%emt 0:01:30]} Bf7 {[%emt 0:00:00]} 53. Ke2 {[%emt 0:01:30]} Be8 {[%emt 0:02:03]} 54. Kf3 {[%emt 0:00:30]} Kb7 {[%emt 0:00:00]} 55. Bc5 {[%emt 0:04:30]} Bc6+ {[%emt 0:00:24]} 56. Kg3 {[%emt 0:00:30]} Kc8 {[%emt 0:01:01]} 57. Bb6 {[%emt 0:00:30]} Kd7 {[%emt 0:00:00]} 58. Bc5 {[%emt 0:00:00]} Ke8 {[%emt 0:00:02]} 59. Bb6 {[%emt 0:00:00]} Kf7 {[%emt 0:00:30]} 60. Bc5 {[%emt 0:02:30]} Kg7 {[%emt 0:00:00]} 61. Bd6 {[%emt 0:00:30]} Kh6 {[%emt 0:00:00]} 62. Nd1 {[%emt 0:01:30]} Bd4 {[%emt 0:01:30]} 63. Be7 {[%emt 0:01:52]} Kg7 {[%emt 0:01:26]} 64. Bb4 {[%emt 0:00:23]} Kf7 {[%emt 0:00:16]} 65. Bc3 {[%emt 0:00:47]} Bc5 {[%emt 0:00:01]} 66. Bh8 {[%emt 0:02:00]} Ke6 {[%emt 0:00:30]} 67. Nc3 {[%emt 0:00:00]} Be3 {[%emt 0:00:17]} 68. Bg7 {[%emt 0:00:51]} Bb6 {[%emt 0:02:31]} 69. Be5 {[%emt 0:01:34]} Bc5 {[%emt 0:00:18]} 70. Bg7 {[%emt 0:00:06]} Bd6 {[%emt 0:00:01]} 71. Bd4 {[%emt 0:00:00]} g5 {[%emt 0:00:54]} 72. Be3 {[%emt 0:00:25]} Kf6 {[%emt 0:00:20]} 73. Ne2 {[%emt 0:02:00]} Bd5 {[%emt 0:00:35]} 74. Kf2 {[%emt 0:04:00]} g4 {[%emt 0:02:57]} 75. hxg4 {[%emt 0:00:30]} fxg4 {[%emt 0:00:00]} 76. Ng3 {[%emt 0:01:17]} Kg6 {[%emt 0:00:00]} 77. Bd2 {[%emt 0:00:48]} Bc5+ {[%emt 0:01:11]} 78. Be3 {[%emt 0:00:37]} Be7 {[%emt 0:00:02]} 79. Bd4 {[%emt 0:00:00]} Be6 {[%emt 0:01:24]} 80. Bc3 {[%emt 0:02:14]} Bc5+ {[%emt 0:00:55]} 81. Ke2 {[%emt 0:01:23]} Bf5 {[%emt 0:00:19]} 82. Be1 {[%emt 0:04:00]} Bd3+ {[%emt 0:02:45]} 83. Kd2 {[%emt 0:00:07]} Bb4+ {[%emt 0:00:15]} 84. Kd1 {[%emt 0:00:30]} Bd6 {[%emt 0:00:01]} 85. Bd2 {[%emt 0:00:19]} Kf6 {[%emt 0:00:05]} 86. Be3 {[%emt 0:00:48]} Ke6 {[%emt 0:00:02]} 87. Ke1 Kd5 {[%emt 0:00:35]} 88. Kf2 {[%emt 0:00:53]} Be7 {[%emt 0:04:18]} 89. Bd2 {[%emt 0:00:30]} Bh4 {[%emt 0:00:30]} 90. Bc3 {[%emt 0:00:00]} Be4 {[%emt 0:00:08]} 91. Be5 {[%emt 0:00:57]} Bf3 {[%emt 0:00:04]} 92. Bc3 {[%emt 0:00:00]} Ke6 {[%emt 0:01:10]} 93. Bd4 {[%emt 0:00:06]} Bd5 {[%emt 0:00:10]} 94. Bc3 {[%emt 0:00:13]} Bf3 {[%emt 0:02:25]} 95. Bd4 {[%emt 0:00:10]} Kd5 {[%emt 0:00:16]} 96. Bc3 {[%emt 0:00:30]} Be7 {[%emt 0:00:01]} 97. Nf5 {[%emt 0:03:31]} Bc5+ {[%emt 0:00:19]} 98. Kg3 {[%emt 0:01:35]} Ke4 {[%emt 0:00:08]} 99. Nh6 {[%emt 0:00:00]} Bd6 {[%emt 0:00:08]} 100. Bd2 {[%emt 0:00:32]} Kd3 {[%emt 0:08:47]} 1/2-1/2

[Event "1st Sivas Buruciye Open 2019"]
[Site "Sivas"]
[Date "2019.08.20"]
[Round "3"]
[White "Lortkipanidze, Nodar"]
[Black "Bagaturov, Giorgi"]
[Result "1/2-1/2"]
[ECO "B22"]
[WhiteElo "2336"]
[BlackElo "2417"]
[Annotator "NA"]
[PlyCount "36"]
[EventDate "2019.08.19"]
[EventType "swiss"]
[EventCountry "TUR"]
[SourceTitle "playchess.com"]
[Source "ChessBase"]
[SourceQuality "1"]
[TimeControl "5400+30"]

1. e4 {[%emt 0:05:30]} c5 {[%emt 0:00:30]} 2. Nf3 {[%emt 0:00:30]} Nc6 {[%emt 0:01:30]} 3. c3 {[%emt 0:00:30]} Nf6 {[%emt 0:02:30]} 4. e5 {[%emt 0:01:30]} Nd5 {[%emt 0:00:30]} 5. d4 {[%emt 0:00:00]} cxd4 {[%emt 0:00:00]} 6. Bc4 {[%emt 0:00:00]} e6 {[%emt 0:01:00]} 7. Bxd5 {[%emt 0:01:30]} exd5 {[%emt 0:00:30]} 8. O-O {[%emt 0:00:30]} d6 {[%emt 0:02:30]} 9. exd6 {[%emt 0:01:30]} Bxd6 {[%emt 0:02:30]} 10. Re1+ {[%emt 0:00:00]} Be6 {[%emt 0:00:30]} 11. Nxd4 {[%emt 0:00:00]} O-O {[%emt 0:14:30]} 12. Na3 {[%emt 0:02:30]} Nxd4 {[%emt 0:04:30]} 13. Qxd4 {[%emt 0:00:30]} Bxa3 {[%emt 0:03:30]} 14. bxa3 {[%emt 0:00:30]} Re8 {[%emt 0:01:30]} 15. Bf4 {[%emt 0:01:30]} Rc8 {[%emt 0:05:30]} 16. Qxa7 {[%emt 0:04:30]} Rxc3 {[%emt 0:01:30]} 17. Qxb7 {[%emt 0:00:30]} Rxa3 {[%emt 0:00:30]} 18. Be5 {[%emt 0:04:30]} d4 {[%emt 0:00:30]} 1/2-1/2

[Event "1st Sivas Buruciye Open 2019"]
[Site "Sivas"]
[Date "2019.08.20"]
[Round "3"]
[White "Babayev, Talib"]
[Black "Yarashov, Azat"]
[Result "0-1"]
[ECO "A00"]
[WhiteElo "2288"]
[BlackElo "2156"]
[Annotator "NA"]
[PlyCount "72"]
[EventDate "2019.08.19"]
[EventType "swiss"]
[EventCountry "TUR"]
[SourceTitle "playchess.com"]
[Source "ChessBase"]
[SourceQuality "1"]
[TimeControl "5400+30"]

1. Nc3 {[%emt 0:00:30]} g6 {[%emt 0:05:30]} 2. Nf3 {[%emt 0:00:30]} Bg7 {[%emt 0:00:30]} 3. g3 {[%emt 0:00:00]} d5 {[%emt 0:00:30]} 4. e4 {[%emt 0:01:00]} dxe4 {[%emt 0:02:30]} 5. Nxe4 {[%emt 0:00:30]} Nd7 {[%emt 0:00:30]} 6. Bg2 {[%emt 0:01:30]} Ngf6 {[%emt 0:00:00]} 7. d3 {[%emt 0:00:00]} O-O {[%emt 0:01:00]} 8. O-O {[%emt 0:00:00]} c6 {[%emt 0:00:30]} 9. Qe2 {[%emt 0:01:30]} Nxe4 {[%emt 0:01:30]} 10. dxe4 {[%emt 0:01:30]} e5 {[%emt 0:00:30]} 11. b3 {[%emt 0:02:30]} Qa5 {[%emt 0:11:30]} 12. Bd2 {[%emt 0:01:30]} Qc7 {[%emt 0:00:30]} 13. Bb4 {[%emt 0:01:30]} Re8 {[%emt 0:00:30]} 14. Rad1 {[%emt 0:01:30]} c5 {[%emt 0:13:30]} 15. Bc3 {[%emt 0:00:30]} Nf8 {[%emt 0:00:30]} 16. Bb2 {[%emt 0:12:30]} Ne6 {[%emt 0:06:30]} 17. Qc4 {[%emt 0:12:30]} a6 {[%emt 0:18:30]} 18. a4 {[%emt 0:00:00]} b5 {[%emt 0:00:30]} 19. Qc3 {[%emt 0:11:00]} b4 {[%emt 0:10:30]} 20. Qe3 {[%emt 0:04:30]} Nd4 {[%emt 0:00:30]} 21. Nxd4 {[%emt 0:00:30]} cxd4 {[%emt 0:00:30]} 22. Qd2 {[%emt 0:00:30]} a5 {[%emt 0:00:30]} 23. f4 {[%emt 0:01:30]} f6 {[%emt 0:02:30]} 24. fxe5 {[%emt 0:03:30]} fxe5 {[%emt 0:00:00]} 25. Rf2 {[%emt 0:00:30]} Be6 {[%emt 0:03:00]} 26. Rdf1 {[%emt 0:03:30]} Rf8 {[%emt 0:00:30]} 27. Bc1 {[%emt 0:00:30]} Rxf2 {[%emt 0:00:30]} 28. Rxf2 {[%emt 0:00:30]} Rf8 {[%emt 0:00:30]} 29. Rxf8+ {[%emt 0:05:30]} Bxf8 {[%emt 0:02:54]} 30. Bf1 {[%emt 0:00:30]} Be7 {[%emt 0:00:02]} 31. h4 {[%emt 0:00:30]} Bc5 {[%emt 0:02:22]} 32. Bd3 {[%emt 0:00:30]} Be7 {[%emt 0:00:01]} 33. Kg2 {[%emt 0:00:30]} Qc8 {[%emt 0:00:32]} 34. Qf2 {[%emt 0:09:30]} Kg7 {[%emt 0:01:24]} 35. Bd2 {[%emt 0:01:30]} h6 {[%emt 0:01:03]} 36. Qf1 {[%emt 0:00:30]} Bh3+ {[%emt 0:00:22]} 0-1

[Event "1st Sivas Buruciye Open 2019"]
[Site "Sivas"]
[Date "2019.08.20"]
[Round "3"]
[White "Ghaffarifar, Matin"]
[Black "Bashirov, Teymur"]
[Result "0-1"]
[ECO "E35"]
[WhiteElo "2082"]
[BlackElo "2298"]
[Annotator "NA"]
[PlyCount "88"]
[EventDate "2019.08.19"]
[EventType "swiss"]
[EventCountry "TUR"]
[SourceTitle "playchess.com"]
[Source "ChessBase"]
[SourceQuality "1"]
[TimeControl "5400+30"]

1. d4 {[%emt 0:06:30]} Nf6 {[%emt 0:00:30]} 2. c4 {[%emt 0:00:30]} e6 {[%emt 0:00:30]} 3. Nc3 {[%emt 0:00:00]} Bb4 {[%emt 0:01:30]} 4. Qc2 {[%emt 0:00:00]} d5 {[%emt 0:00:30]} 5. cxd5 {[%emt 0:00:30]} exd5 {[%emt 0:01:30]} 6. Bg5 {[%emt 0:00:00]} h6 {[%emt 0:01:30]} 7. Bh4 {[%emt 0:03:00]} Bxc3+ {[%emt 0:00:30]} 8. bxc3 {[%emt 0:06:30]} c5 {[%emt 0:02:30]} 9. dxc5 {[%emt 0:01:30]} O-O {[%emt 0:01:30]} 10. e3 {[%emt 0:01:30]} Nbd7 {[%emt 0:01:30]} 11. Bd3 {[%emt 0:06:30]} Nxc5 {[%emt 0:03:30]} 12. Ne2 {[%emt 0:00:30]} Bd7 {[%emt 0:01:30]} 13. O-O {[%emt 0:07:30]} Re8 {[%emt 0:03:30]} 14. Rab1 {[%emt 0:07:30]} g5 {[%emt 0:07:30]} 15. Bg3 {[%emt 0:01:30]} Nxd3 {[%emt 0:00:30]} 16. Qxd3 {[%emt 0:00:30]} b6 {[%emt 0:00:00]} 17. Rb4 {[%emt 0:04:30]} Qe7 {[%emt 0:03:00]} 18. Rd4 {[%emt 0:07:30]} Rac8 {[%emt 0:05:30]} 19. h4 {[%emt 0:08:30]} Qe6 {[%emt 0:04:30]} 20. Rc1 {[%emt 0:03:30]} Rc5 {[%emt 0:02:30]} 21. hxg5 {[%emt 0:03:30]} hxg5 {[%emt 0:01:30]} 22. a4 {[%emt 0:03:30]} Bc8 {[%emt 0:04:30]} 23. Bh2 {[%emt 0:05:30]} Kg7 {[%emt 0:02:30]} 24. Rb4 {[%emt 0:01:58]} Ng4 {[%emt 0:02:30]} 25. Bg3 {[%emt 0:04:22]} Bd7 {[%emt 0:02:30]} 26. Rd4 {[%emt 0:05:38]} Rh8 {[%emt 0:03:30]} 27. f3 {[%emt 0:01:26]} Nxe3 {[%emt 0:01:30]} 28. Bf2 {[%emt 0:01:26]} Nc4 {[%emt 0:01:30]} 29. Rg4 {[%emt 0:01:11]} f6 {[%emt 0:04:30]} 30. Nf4 {[%emt 0:02:04]} Qf7 {[%emt 0:01:30]} 31. Rg3 {[%emt 0:02:09]} Ne5 {[%emt 0:01:30]} 32. Qd2 {[%emt 0:01:08]} Nc4 {[%emt 0:03:30]} 33. Qd4 {[%emt 0:01:07]} Kg8 {[%emt 0:01:30]} 34. Re1 {[%emt 0:00:33]} Rh4 {[%emt 0:01:30]} 35. Re7 {[%emt 0:03:00]} Qxe7 {[%emt 0:01:30]} 36. Nxd5 {[%emt 0:00:56]} Rxd5 {[%emt 0:01:30]} 37. Qxd5+ {[%emt 0:00:16]} Be6 {[%emt 0:00:30]} 38. Qa8+ {[%emt 0:00:20]} Kf7 {[%emt 0:01:30]} 39. Bd4 {[%emt 0:00:12]} Qc7 {[%emt 0:01:30]} 40. Kf2 {[%emt 0:00:32]} Rh1 {[%emt 0:01:30]} 41. Qe4 {[%emt 0:00:33]} Nd2 {[%emt 0:00:30]} 42. Qc2 {[%emt 0:01:03]} Rf1+ {[%emt 0:02:30]} 43. Ke2 {[%emt 0:00:13]} Bc4+ {[%emt 0:00:30]} 44. Kxd2 {[%emt 0:00:46]} Qf4+ {[%emt 0:01:30]} 0-1

[Event "1st Sivas Buruciye Open 2019"]
[Site "Sivas"]
[Date "2019.08.20"]
[Round "3"]
[White "Kiziltas, Inanc Vefa"]
[Black "Shabanov, Abdulla"]
[Result "1-0"]
[ECO "B73"]
[WhiteElo "1826"]
[BlackElo "1776"]
[Annotator "NA"]
[PlyCount "103"]
[EventDate "2019.08.19"]
[EventType "swiss"]
[EventCountry "TUR"]
[SourceTitle "playchess.com"]
[Source "ChessBase"]
[SourceQuality "1"]
[TimeControl "5400+30"]

1. e4 {[%emt 0:01:30]} c5 {[%emt 0:01:30]} 2. Nf3 {[%emt 0:00:30]} d6 {[%emt 0:01:30]} 3. d4 {[%emt 0:00:30]} cxd4 {[%emt 0:00:30]} 4. Nxd4 {[%emt 0:00:00]} Nf6 {[%emt 0:00:30]} 5. Nc3 {[%emt 0:00:00]} g6 {[%emt 0:00:00]} 6. Be2 {[%emt 0:00:30]} Bg7 {[%emt 0:02:00]} 7. O-O {[%emt 0:01:30]} Nc6 {[%emt 0:01:30]} 8. Be3 {[%emt 0:00:00]} O-O {[%emt 0:01:30]} 9. h3 {[%emt 0:00:00]} Bd7 {[%emt 0:08:30]} 10. Qd2 {[%emt 0:03:30]} Nxd4 {[%emt 0:07:30]} 11. Bxd4 {[%emt 0:00:00]} Bc6 {[%emt 0:02:30]} 12. Bf3 {[%emt 0:00:00]} Qa5 {[%emt 0:10:30]} 13. Rad1 {[%emt 0:04:30]} Rac8 {[%emt 0:14:30]} 14. Nd5 {[%emt 0:13:30]} Qxd2 {[%emt 0:02:30]} 15. Nxe7+ {[%emt 0:01:30]} Kh8 {[%emt 0:00:30]} 16. Rxd2 {[%emt 0:00:30]} Rc7 {[%emt 0:14:30]} 17. Nxc6 {[%emt 0:03:30]} bxc6 {[%emt 0:03:30]} 18. c3 {[%emt 0:01:30]} Ne8 {[%emt 0:08:19]} 19. Rfd1 {[%emt 0:02:30]} f5 {[%emt 0:02:21]} 20. exf5 {[%emt 0:02:30]} Rxf5 {[%emt 0:02:03]} 21. Re2 {[%emt 0:01:30]} Rf8 {[%emt 0:04:50]} 22. Rde1 {[%emt 0:00:30]} Bxd4 {[%emt 0:02:59]} 23. cxd4 {[%emt 0:00:30]} Nf6 {[%emt 0:00:35]} 24. Re7 {[%emt 0:00:30]} Rfc8 {[%emt 0:01:12]} 25. Rxc7 {[%emt 0:01:30]} Rxc7 {[%emt 0:00:30]} 26. Re6 {[%emt 0:00:00]} Kg7 {[%emt 0:02:44]} 27. Rxd6 {[%emt 0:00:00]} c5 {[%emt 0:00:00]} 28. dxc5 {[%emt 0:02:30]} Rxc5 {[%emt 0:00:05]} 29. Rc6 {[%emt 0:00:30]} Rxc6 {[%emt 0:04:57]} 30. Bxc6 {[%emt 0:00:30]} Kf7 {[%emt 0:00:30]} 31. g4 {[%emt 0:00:30]} g5 {[%emt 0:00:30]} 32. Kg2 {[%emt 0:00:30]} Ke6 {[%emt 0:00:00]} 33. b4 {[%emt 0:01:30]} Ke5 {[%emt 0:01:04]} 34. Kg3 {[%emt 0:00:30]} h6 {[%emt 0:00:01]} 35. h4 {[%emt 0:01:30]} Kd4 {[%emt 0:00:32]} 36. hxg5 {[%emt 0:00:30]} hxg5 {[%emt 0:00:01]} 37. f4 {[%emt 0:00:30]} gxf4+ {[%emt 0:01:12]} 38. Kxf4 {[%emt 0:00:00]} Kc4 {[%emt 0:00:45]} 39. b5 {[%emt 0:00:00]} Ng8 {[%emt 0:00:17]} 40. Ke5 {[%emt 0:00:30]} Nh6 {[%emt 0:00:25]} 41. g5 {[%emt 0:00:30]} Nf7+ {[%emt 0:00:37]} 42. Kf6 {[%emt 0:00:30]} Nxg5 {[%emt 0:00:14]} 43. Kxg5 {[%emt 0:00:00]} Kc5 {[%emt 0:00:02]} 44. a4 {[%emt 0:00:00]} Kb6 {[%emt 0:01:01]} 45. Kf6 {[%emt 0:00:30]} a6 {[%emt 0:00:48]} 46. Ke6 {[%emt 0:00:30]} axb5 {[%emt 0:00:36]} 47. axb5 {[%emt 0:00:30]} Kc7 {[%emt 0:00:00]} 48. Kd5 {[%emt 0:00:00]} Kb6 {[%emt 0:00:29]} 49. Kd6 {[%emt 0:00:00]} Ka7 {[%emt 0:00:00]} 50. Kc5 {[%emt 0:00:30]} Kb8 {[%emt 0:00:22]} 51. b6 {[%emt 0:00:30]} Kc8 {[%emt 0:00:00]} 52. Kb5 {[%emt 0:00:00]} 1-0

[Event "1st Sivas Buruciye Open 2019"]
[Site "Sivas"]
[Date "2019.08.20"]
[Round "3"]
[White "Gurbanov, Ismayil"]
[Black "Sabahi, Ali Can"]
[Result "0-1"]
[ECO "C09"]
[WhiteElo "1738"]
[BlackElo "1825"]
[Annotator "NA"]
[PlyCount "98"]
[EventDate "2019.08.19"]
[EventType "swiss"]
[EventCountry "TUR"]
[SourceTitle "playchess.com"]
[Source "ChessBase"]
[SourceQuality "1"]
[TimeControl "5400+30"]

1. e4 {[%emt 0:04:30]} e6 {[%emt 0:00:30]} 2. d4 {[%emt 0:00:30]} d5 {[%emt 0:00:00]} 3. Nd2 c5 {[%emt 0:00:00]} 4. exd5 {[%emt 0:02:00]} exd5 {[%emt 0:00:30]} 5. Ngf3 {[%emt 0:00:00]} Nc6 {[%emt 0:00:30]} 6. dxc5 {[%emt 0:05:00]} Bxc5 {[%emt 0:00:30]} 7. Nb3 {[%emt 0:00:00]} Bd6 {[%emt 0:00:30]} 8. Be2 {[%emt 0:01:00]} Nge7 {[%emt 0:00:00]} 9. O-O {[%emt 0:00:00]} O-O {[%emt 0:00:00]} 10. c3 {[%emt 0:01:00]} Bg4 {[%emt 0:01:30]} 11. Nfd4 {[%emt 0:00:30]} Bxe2 {[%emt 0:01:30]} 12. Qxe2 {[%emt 0:07:30]} Rc8 {[%emt 0:01:30]} 13. Bg5 {[%emt 0:01:30]} Qc7 {[%emt 0:03:30]} 14. h3 {[%emt 0:04:30]} a6 {[%emt 0:00:30]} 15. Rfe1 {[%emt 0:04:30]} Qd7 {[%emt 0:02:30]} 16. Rad1 {[%emt 0:06:30]} Ng6 {[%emt 0:04:30]} 17. Nxc6 {[%emt 0:18:30]} bxc6 {[%emt 0:01:30]} 18. c4 {[%emt 0:01:30]} Bb8 {[%emt 0:04:30]} 19. cxd5 {[%emt 0:10:30]} cxd5 {[%emt 0:00:30]} 20. Qxa6 {[%emt 0:00:00]} Qf5 {[%emt 0:07:30]} 21. Bd2 {[%emt 0:08:00]} Be5 {[%emt 0:05:30]} 22. Bb4 {[%emt 0:17:13]} Rfd8 {[%emt 0:30:30]} 23. Ba5 {[%emt 0:00:32]} Re8 {[%emt 0:13:48]} 24. Bc3 {[%emt 0:01:42]} Bxc3 {[%emt 0:07:21]} 25. bxc3 {[%emt 0:00:42]} Nf4 {[%emt 0:00:13]} 26. Qb5 {[%emt 0:03:23]} Red8 {[%emt 0:01:42]} 27. Re3 {[%emt 0:00:07]} Rb8 {[%emt 0:01:51]} 28. Qf1 {[%emt 0:01:27]} h5 {[%emt 0:02:12]} 29. Nd4 {[%emt 0:00:25]} Qd7 {[%emt 0:01:29]} 30. Rf3 {[%emt 0:00:55]} Ng6 {[%emt 0:00:14]} 31. Re1 {[%emt 0:00:27]} Rb2 {[%emt 0:00:41]} 32. Re2 {[%emt 0:00:57]} Rdb8 {[%emt 0:00:21]} 33. Kh2 {[%emt 0:00:34]} Qc7+ {[%emt 0:02:35]} 34. g3 {[%emt 0:00:12]} Qc4 {[%emt 0:00:00]} 35. Qe1 {[%emt 0:00:49]} Rb1 {[%emt 0:04:00]} 36. Qd2 {[%emt 0:00:29]} f6 {[%emt 0:01:34]} 37. Qd3 {[%emt 0:00:33]} Ne5 {[%emt 0:00:55]} 38. Rxe5 {[%emt 0:00:02]} Qxd3 {[%emt 0:00:24]} 39. Rxd3 {[%emt 0:00:30]} fxe5 {[%emt 0:00:30]} 40. Nc6 {[%emt 0:00:30]} e4 {[%emt 0:00:30]} 41. Rxd5 {[%emt 0:00:30]} R8b2 {[%emt 0:00:30]} 42. Rf5 {[%emt 0:00:30]} g6 {[%emt 0:00:30]} 43. Rf6 {[%emt 0:00:30]} e3 {[%emt 0:00:30]} 44. Rxg6+ {[%emt 0:00:30]} Kf7 {[%emt 0:00:30]} 45. Ne5+ {[%emt 0:00:30]} Ke8 {[%emt 0:00:30]} 46. Re6+ {[%emt 0:00:30]} Kd8 {[%emt 0:00:30]} 47. Nd3 {[%emt 0:00:30]} exf2 {[%emt 0:00:25]} 48. Rd6+ {[%emt 0:00:00]} Kc7 {[%emt 0:00:39]} 49. Rf6 {[%emt 0:00:00]} f1=Q+ {[%emt 0:00:13]} 0-1

[Event "1st Sivas Buruciye Open 2019"]
[Site "Sivas"]
[Date "2019.08.20"]
[Round "3"]
[White "Karahan, Anil"]
[Black "Karimov, Joshgun"]
[Result "1-0"]
[ECO "A46"]
[WhiteElo "1721"]
[BlackElo "1719"]
[Annotator "NA"]
[PlyCount "91"]
[EventDate "2019.08.19"]
[EventType "swiss"]
[EventCountry "TUR"]
[SourceTitle "playchess.com"]
[Source "ChessBase"]
[SourceQuality "1"]
[TimeControl "5400+30"]

1. d4 {[%emt 0:00:30]} Nf6 {[%emt 0:00:30]} 2. Nf3 {[%emt 0:00:00]} b5 {[%emt 0:00:30]} 3. e4 {[%emt 0:09:00]} Nxe4 {[%emt 0:03:30]} 4. Bxb5 {[%emt 0:00:00]} Bb7 {[%emt 0:02:30]} 5. Qe2 {[%emt 0:01:00]} e6 {[%emt 0:02:30]} 6. O-O {[%emt 0:04:30]} Be7 {[%emt 0:02:30]} 7. Nbd2 {[%emt 0:02:30]} Nxd2 {[%emt 0:06:30]} 8. Bxd2 {[%emt 0:00:30]} O-O {[%emt 0:00:00]} 9. Rfe1 {[%emt 0:02:30]} d6 {[%emt 0:15:00]} 10. c4 {[%emt 0:01:30]} c6 {[%emt 0:03:30]} 11. Ba4 {[%emt 0:02:30]} Nd7 {[%emt 0:03:30]} 12. b4 {[%emt 0:19:30]} Bf6 {[%emt 0:07:30]} 13. Rab1 {[%emt 0:11:30]} a6 {[%emt 0:04:30]} 14. Bf4 {[%emt 0:07:30]} Be7 {[%emt 0:03:30]} 15. Bb3 {[%emt 0:01:30]} Re8 {[%emt 0:07:30]} 16. Qd2 {[%emt 0:02:30]} Nf8 {[%emt 0:01:30]} 17. Ba4 {[%emt 0:09:30]} Nd7 {[%emt 0:02:30]} 18. Rec1 {[%emt 0:03:41]} Rc8 {[%emt 0:04:30]} 19. Bc2 {[%emt 0:02:01]} Nf8 {[%emt 0:02:30]} 20. a4 {[%emt 0:03:22]} Ng6 {[%emt 0:00:30]} 21. Bg3 {[%emt 0:00:18]} Ba8 {[%emt 0:05:43]} 22. c5 {[%emt 0:02:32]} d5 {[%emt 0:03:01]} 23. Bd3 {[%emt 0:00:47]} Bb7 {[%emt 0:00:21]} 24. Qe2 {[%emt 0:00:16]} Ra8 {[%emt 0:02:27]} 25. b5 {[%emt 0:01:01]} axb5 {[%emt 0:00:30]} 26. axb5 {[%emt 0:00:00]} Bf6 {[%emt 0:02:30]} 27. b6 {[%emt 0:08:08]} Qd7 {[%emt 0:04:06]} 28. Qb2 {[%emt 0:01:08]} Rec8 {[%emt 0:03:15]} 29. Ra1 {[%emt 0:00:15]} Rxa1 {[%emt 0:05:21]} 30. Rxa1 {[%emt 0:00:02]} Ra8 {[%emt 0:01:45]} 31. Rxa8+ {[%emt 0:02:16]} Bxa8 {[%emt 0:00:04]} 32. Qa3 {[%emt 0:00:28]} Bb7 {[%emt 0:00:31]} 33. Qa7 {[%emt 0:01:04]} Qc8 {[%emt 0:00:16]} 34. Bxg6 {[%emt 0:01:12]} hxg6 {[%emt 0:00:09]} 35. Be5 {[%emt 0:00:17]} Kf8 {[%emt 0:01:45]} 36. Bxf6 {[%emt 0:01:11]} gxf6 {[%emt 0:00:02]} 37. h3 {[%emt 0:00:20]} Qa8 {[%emt 0:00:59]} 38. Qxa8+ {[%emt 0:00:40]} Bxa8 {[%emt 0:00:30]} 39. Nd2 {[%emt 0:00:30]} Ke8 {[%emt 0:00:30]} 40. Nb3 {[%emt 0:00:30]} Kd7 {[%emt 0:00:30]} 41. Na5 {[%emt 0:00:30]} Kc8 {[%emt 0:00:30]} 42. Kf1 {[%emt 0:00:30]} e5 {[%emt 0:00:30]} 43. Ke2 {[%emt 0:00:00]} e4 {[%emt 0:00:24]} 44. Ke3 {[%emt 0:00:00]} f5 {[%emt 0:00:13]} 45. Kf4 {[%emt 0:00:00]} f6 {[%emt 0:00:13]} 46. g4 {[%emt 0:00:03]} 1-0